fUSD/lending_fUSD_20240828
["ID","MTS","AMOUNT","RATE_DAILY","PERIOD"]
[336511256,1724886274318,-500.0,0.00038356,120]
[336511257,1724886274392,-500.0,0.00038356,120]
[336511258,1724886274458,-500.0,0.00038356,120]
[336511259,1724886274544,-579.28,0.00038356,120]
[336511260,1724886274617,-500.0,0.00038356,120]
[336511261,1724886274684,-500.0,0.00038356,120]
[336511262,1724886274750,-500.0,0.00038356,120]
[336511263,1724886274818,-500.0,0.00038356,120]
[336511264,1724886274894,-500.0,0.00038356,120]
[336511265,1724886274963,-725.36,0.00038356,120]
[336511266,1724886275038,-510.45,0.00038356,120]
[336511267,1724886275107,-500.0,0.00038356,120]
[336511268,1724886275171,-512.0475225,0.00038356,120]
[336511269,1724886275237,-500.0,0.00038356,120]
[336511270,1724886275326,-500.0,0.00038356,120]
[336511271,1724886275408,-500.0,0.00038356,120]
[336511272,1724886275473,-500.0,0.00038356,120]
[336511273,1724886275537,-576.92,0.00038356,120]
[336511274,1724886275622,-500.0,0.00038356,120]
[336511275,1724886275685,-500.0,0.00038356,120]
[336511276,1724886275770,-500.0,0.00038356,120]
[336511277,1724886275854,-500.0,0.00038356,120]
[336511278,1724886275918,-500.0,0.00038356,120]
[336511279,1724886275980,-500.0,0.00038356,120]
[336511280,1724886276066,-948.95,0.00038356,120]
[336511281,1724886276129,-500.0,0.00038356,120]
[336511282,1724886276207,-500.0,0.00038356,120]
[336511283,1724886276273,-500.0,0.00038356,120]
[336511284,1724886276350,-500.0,0.00038356,120]
[336511285,1724886276415,-500.0,0.00038356,120]
[336511286,1724886276474,-632.09,0.00038356,120]
[336511287,1724886276531,-500.0,0.00038356,120]
[336511288,1724886276591,-500.0,0.00038356,120]
[336511289,1724886276653,-500.0,0.00038356,120]
[336511290,1724886276715,-500.0,0.00038356,120]
[336511291,1724886276775,-500.0,0.00038356,120]
[336511292,1724886276833,-500.0,0.00038356,120]
[336511293,1724886276896,-500.0,0.00038356,120]
[336511294,1724886276962,-500.0,0.00038356,120]
[336511295,1724886277024,-500.0,0.00038356,120]
[336511296,1724886277082,-504.54,0.00038356,120]
[336511297,1724886277141,-500.0,0.00038356,120]
[336511298,1724886277202,-300.0,0.00038356,120]
[336511299,1724886277471,-1145.31,0.00038356,120]
[336511300,1724886277531,-1592.69,0.00038356,120]
[336511301,1724886277588,-500.0,0.00038356,120]
[336511302,1724886277645,-500.0,0.00038356,120]
[336511303,1724886277703,-1470.18,0.00038356,120]
[336511304,1724886277759,-500.0,0.00038356,120]
[336511305,1724886277817,-500.0,0.00038356,120]
[336511306,1724886277873,-500.0,0.00038356,120]
[336511307,1724886277931,-772.86,0.00038356,120]
[336511308,1724886277992,-500.0,0.00038356,120]
[336511309,1724886278050,-500.0,0.00038356,120]
[336511310,1724886278109,-500.0,0.00038356,120]
[336511311,1724886278167,-535.61,0.00038356,120]
[336511312,1724886278223,-500.0,0.00038356,120]
[336511313,1724886278279,-500.0,0.00038356,120]
[336511314,1724886278340,-500.0,0.00038356,120]
[336511315,1724886278397,-500.0,0.00038356,120]
[336511316,1724886278456,-500.0,0.00038356,120]
[336511317,1724886278518,-500.0,0.00038356,120]
[336511318,1724886278593,-2098.61,0.00038356,120]
[336511319,1724886278672,-500.0,0.00038356,120]
[336511320,1724886278748,-509.22,0.00038356,120]
[336511321,1724886278833,-500.0,0.00038356,120]
[336511322,1724886278909,-500.0,0.00038356,120]
[336511323,1724886278973,-500.0,0.00038356,120]
[336511324,1724886279031,-500.0,0.00038356,120]
[336511325,1724886279095,-531.97,0.00038356,120]
[336511326,1724886279154,-500.0,0.00038356,120]
[336511327,1724886279218,-500.0,0.00038356,120]
[336511328,1724886279290,-500.0,0.00038356,120]
[336511329,1724886279363,-500.0,0.00038356,120]
[336511330,1724886279432,-500.0,0.00038356,120]
[336511331,1724886279497,-500.0,0.00038356,120]
[336511332,1724886279557,-500.0,0.00038356,120]
[336511333,1724886279623,-1877.64,0.00038356,120]
[336511334,1724886279686,-931.98,0.00038356,120]
[336511335,1724886279749,-500.0,0.00038356,120]
[336511336,1724886279811,-1789.35,0.00038356,120]
[336511337,1724886279872,-500.0,0.00038356,120]
[336511338,1724886279940,-500.0,0.00038356,120]
[336511339,1724886280008,-631.54,0.00038356,120]
[336511340,1724886280075,-500.0,0.00038356,120]
[336511341,1724886280138,-2347.84,0.00038356,120]
[336511342,1724886280206,-500.0,0.00038356,120]
[336511343,1724886280275,-500.0,0.00038356,120]
[336511344,1724886280338,-500.0,0.00038356,120]
[336511345,1724886280404,-500.0,0.00038356,120]
[336511346,1724886280468,-500.0,0.00038356,120]
[336511347,1724886280529,-500.0,0.00038356,120]
[336511348,1724886280584,-500.0,0.00038356,120]
[336511349,1724886280642,-500.0,0.00038356,120]
[336511350,1724886280701,-982.26,0.00038356,120]
[336511351,1724886280759,-551.1026065,0.00038356,120]
[336511352,1724886280816,-500.0,0.00038356,120]
[336511353,1724886280870,-564.22,0.00038356,120]
[336511354,1724886280930,-500.0,0.00038356,120]
[336511355,1724886280987,-500.0,0.00038356,120]
[336511356,1724886281043,-500.0,0.00038356,120]
[336511357,1724886281099,-500.0,0.00038356,120]
[336511358,1724886281160,-801.34,0.00038356,120]
[336511359,1724886281218,-250.465548,0.00038356,120]
[336511360,1724886281277,-152.330081,0.00038356,120]
[336511361,1724886281334,-500.0,0.00038356,120]
[336511362,1724886281392,-2166.81,0.00038356,120]
[336511363,1724886281453,-2049.02,0.0003863,120]
[336511364,1724886281507,-500.0,0.0003863,120]
[336511365,1724886281559,-500.0,0.0003863,120]
[336511366,1724886281617,-680.33,0.0003863,120]
[336511367,1724886281676,-500.0,0.0003863,120]
[336511368,1724886281735,-500.0,0.0003863,120]
[336511369,1724886281794,-500.0,0.0003863,120]
[336511370,1724886281854,-510.25019722,0.0003863,120]
[336511371,1724886281916,-1056.79,0.0003863,120]
[336511372,1724886281979,-500.0,0.0003863,120]
[336511373,1724886282040,-891.13,0.0003863,120]
[336511374,1724886282103,-500.0,0.0003863,120]
[336511375,1724886282166,-500.0,0.0003863,120]
[336511376,1724886282232,-500.0,0.0003863,120]
[336511377,1724886282298,-500.0,0.0003863,120]
[336511378,1724886282360,-596.35970263,0.0003863,120]
[336511379,1724886282420,-500.0,0.0003863,120]
[336511380,1724886282481,-500.0,0.0003863,120]
[336511381,1724886282542,-717.5,0.0003863,120]
[336511382,1724886282600,-500.0,0.0003863,120]
[336511383,1724886282656,-500.0,0.0003863,120]
[336511384,1724886282712,-500.0,0.0003863,120]
[336511385,1724886282771,-508.42337092,0.0003863,120]
[336511386,1724886282828,-500.0,0.0003863,120]
[336511387,1724886282885,-500.0,0.0003863,120]
[336511388,1724886282944,-500.0,0.0003863,120]
[336511389,1724886283003,-500.17090029,0.0003863,120]
[336511390,1724886283061,-500.0,0.0003863,120]
[336511391,1724886283120,-1181.13,0.0003863,120]
[336511392,1724886283179,-1579.19,0.0003863,120]
[336511393,1724886283243,-500.0,0.0003863,120]
[336511394,1724886283306,-920.35,0.0003863,120]
[336511395,1724886283365,-500.0,0.0003863,120]
[336511396,1724886283422,-1840.27,0.0003863,120]
[336511397,1724886283479,-500.0,0.0003863,120]
[336511398,1724886283538,-500.0,0.0003863,120]
[336511399,1724886283592,-654.82,0.0003863,120]
[336511400,1724886283647,-500.0,0.0003863,120]
[336511401,1724886283703,-912.37,0.0003863,120]
[336511402,1724886283761,-329.99852022,0.0003863,120]
[336511403,1724886283818,-513.92755651,0.0003863,120]
[336511404,1724886284095,-500.0,0.0003863,120]
[336511405,1724886284163,-500.0,0.0003863,120]
[336511406,1724886284229,-1104.37,0.0003863,120]
[336511407,1724886284293,-500.0,0.0003863,120]
[336511408,1724886284357,-500.0,0.0003863,120]
[336511409,1724886284422,-500.0,0.0003863,120]
[336511410,1724886284487,-631.76,0.0003863,120]
[336511411,1724886284549,-611.75,0.0003863,120]
[336511412,1724886284616,-500.0,0.0003863,120]
[336511413,1724886284679,-500.0,0.0003863,120]
[336511414,1724886284745,-500.0,0.0003863,120]
[336511415,1724886284810,-500.0,0.0003863,120]
[336511416,1724886284873,-500.0,0.0003863,120]
[336511417,1724886284933,-500.0,0.0003863,120]
[336511418,1724886284995,-500.0,0.0003863,120]
[336511419,1724886285060,-500.0,0.0003863,120]
[336511420,1724886285125,-500.0,0.0003863,120]
[336511421,1724886285189,-500.0,0.0003863,120]
[336511422,1724886285252,-1569.87,0.0003863,120]
[336511423,1724886285314,-573.03960223,0.0003863,120]
[336511424,1724886285384,-490.59990831,0.0003863,120]
[336511425,1724886285474,-1273.26,0.0003863,120]
[336511426,1724886285545,-500.0,0.0003863,120]
[336511427,1724886285622,-654.11,0.0003863,120]
[336511428,1724886285709,-252.56795132,0.0003863,120]
[336511429,1724886285774,-500.0,0.0003863,120]
[336511430,1724886285844,-2638.27,0.0003863,120]
[336511431,1724886285925,-500.0,0.0003863,120]
[336511432,1724886285991,-2108.19,0.0003863,120]
[336511433,1724886286070,-500.0,0.0003863,120]
[336511434,1724886286142,-500.0,0.0003863,120]
[336511435,1724886286228,-495.34434179,0.0003863,120]
[336511436,1724886286293,-500.0,0.0003863,120]
[336511437,1724886286380,-500.0,0.0003863,120]
[336511438,1724886286460,-500.0,0.0003863,120]
[336511439,1724886286533,-2142.25,0.0003863,120]
[336511440,1724886286613,-2170.08,0.0003863,120]
[336511441,1724886286704,-500.0,0.0003863,120]
[336511442,1724886286772,-500.0,0.0003863,120]
[336511443,1724886286857,-500.0,0.0003863,120]
[336511444,1724886286942,-500.0,0.0003863,120]
[336511445,1724886287013,-500.0,0.0003863,120]
[336511446,1724886287076,-500.0,0.0003863,120]
[336511447,1724886287160,-500.0,0.0003863,120]
[336511448,1724886287226,-739.6,0.0003863,120]
[336511449,1724886287293,-500.0,0.0003863,120]
[336511450,1724886287359,-500.0,0.0003863,120]
[336511451,1724886287426,-500.0,0.0003863,120]
[336511452,1724886287488,-500.0,0.0003863,120]
[336511453,1724886287543,-1209.44,0.0003863,120]
[336511454,1724886287600,-500.0,0.0003863,120]
[336511455,1724886287660,-500.0,0.0003863,120]
[336511456,1724886287717,-500.0,0.0003863,120]
[336511457,1724886287770,-500.0,0.0003863,120]
[336511458,1724886287822,-520.70780286,0.0003863,120]
[336511459,1724886287878,-2783.34,0.0003863,120]
[336511460,1724886287940,-500.0,0.0003863,120]
[336511461,1724886288000,-500.0,0.0003863,120]
[336511462,1724886288064,-1174.49,0.0003863,120]
[336511463,1724886288139,-523.78287816,0.0003863,120]
[336511464,1724886288202,-500.0,0.0003863,120]
[336511465,1724886288268,-500.0,0.0003863,120]
[336511466,1724886288339,-1360.62,0.0003863,120]
[336511467,1724886288404,-577.26,0.0003863,120]
[336511468,1724886288464,-614.02,0.0003863,120]
[336511469,1724886288522,-500.0,0.0003863,120]
[336511470,1724886288581,-500.0,0.0003863,120]
[336511471,1724886288653,-500.0,0.0003863,120]
[336511472,1724886288711,-789.5,0.0003863,120]
[336511473,1724886288770,-656.15,0.0003863,120]
[336511474,1724886288839,-500.0,0.0003863,120]
[336511475,1724886288894,-599.62,0.0003863,120]
[336511476,1724886288951,-500.0,0.0003863,120]
[336511477,1724886289009,-500.0,0.0003863,120]
[336511478,1724886289079,-500.0,0.0003863,120]
[336511479,1724886289174,-509.71842104,0.0003863,120]
[336511480,1724886289261,-500.0,0.0003863,120]
[336511481,1724886289331,-500.0,0.0003863,120]
[336511482,1724886289397,-507.47579398,0.0003863,120]
[336511483,1724886289467,-500.0,0.0003863,120]
[336511484,1724886289536,-500.0,0.0003863,120]
[336511485,1724886289604,-500.0,0.0003863,120]
[336511486,1724886289668,-500.0,0.0003863,120]
[336511487,1724886289733,-2026.94,0.0003863,120]
[336511488,1724886289800,-640.33,0.0003863,120]
[336511489,1724886289864,-500.0,0.0003863,120]
[336511490,1724886289938,-1007.8,0.0003863,120]
[336511491,1724886290003,-508.42047312,0.0003863,120]
[336511492,1724886290066,-3251.65,0.0003863,120]
[336511493,1724886290130,-979.48,0.0003863,120]
[336511494,1724886290194,-988.01,0.0003863,120]
[336511495,1724886290259,-703.62,0.0003863,120]
[336511496,1724886290327,-500.0,0.0003863,120]
[336511497,1724886290402,-500.0,0.0003863,120]
[336511498,1724886290464,-500.0,0.0003863,120]
[336511499,1724886290526,-551.69,0.0003863,120]
[336511500,1724886290589,-500.0,0.0003863,120]
[336511501,1724886290650,-500.0,0.0003863,120]
[336511502,1724886290709,-500.0,0.0003863,120]
[336511503,1724886290767,-701.62,0.0003863,120]
[336511504,1724886290830,-500.0,0.0003863,120]
[336511505,1724886290892,-1022.1,0.0003863,120]
[336511506,1724886290956,-501.08832535,0.0003863,120]
[336511507,1724886291018,-500.0,0.0003863,120]
[336511508,1724886291290,-1634.2,0.0003863,120]
[336511509,1724886291354,-896.96,0.0003863,120]
[336511510,1724886291415,-500.0,0.0003863,120]
[336511511,1724886291473,-500.0,0.0003863,120]
[336511512,1724886291534,-500.0,0.0003863,120]
[336511513,1724886291593,-1000.0,0.0003863,120]
[336511514,1724886291658,-500.0,0.0003863,120]
[336511515,1724886291722,-500.0,0.0003863,120]
[336511516,1724886291784,-500.0,0.0003863,120]
[336511517,1724886291847,-500.0,0.0003863,120]
[336511518,1724886291913,-500.0,0.0003863,120]
[336511519,1724886291977,-1182.11,0.0003863,120]
[336511520,1724886292048,-500.0,0.0003863,120]
[336511521,1724886292118,-500.0,0.0003863,120]
[336511522,1724886292187,-1294.95,0.0003863,120]
[336511523,1724886292256,-500.0,0.0003863,120]
[336511524,1724886292322,-500.0,0.0003863,120]
[336511525,1724886292393,-500.0,0.0003863,120]
[336511526,1724886292458,-500.0,0.0003863,120]
[336511527,1724886292519,-500.0,0.0003863,120]
[336511528,1724886292593,-500.0,0.0003863,120]
[336511529,1724886292653,-500.0,0.0003863,120]
[336511530,1724886292713,-500.0,0.0003863,120]
[336511531,1724886292774,-500.0,0.0003863,120]
[336511532,1724886292843,-500.0,0.0003863,120]
[336511533,1724886292903,-500.0,0.0003863,120]
[336511534,1724886292961,-843.11,0.0003863,120]
[336511535,1724886293018,-500.0,0.0003863,120]
[336511536,1724886293085,-199.75,0.0003863,120]
[336511537,1724886293152,-500.0,0.0003863,120]
[336511538,1724886293216,-494.99878775,0.0003863,120]
[336511539,1724886293281,-500.0,0.0003863,120]
[336511540,1724886293354,-500.0,0.0003863,120]
[336511541,1724886293422,-500.0,0.0003863,120]
[336511542,1724886293484,-579.28,0.0003863,120]
[336511543,1724886293565,-500.0,0.0003863,120]
[336511544,1724886293632,-500.0,0.0003863,120]
[336511545,1724886293696,-500.0,0.0003863,120]
[336511546,1724886293759,-200.4,0.0003863,120]
[336511547,1724886293823,-500.0,0.0003863,120]
[336511548,1724886293892,-725.36,0.0003863,120]
[336511549,1724886293958,-510.45,0.0003863,120]
[336511550,1724886294023,-500.0,0.0003863,120]
[336511551,1724886294088,-500.0,0.0003863,120]
[336511552,1724886294159,-500.0,0.0003863,120]
[336511553,1724886294228,-500.0,0.0003863,120]
[336511554,1724886294296,-576.92,0.0003863,120]
[336511555,1724886294364,-500.0,0.0003863,120]
[336511556,1724886294430,-500.0,0.0003863,120]
[336511557,1724886294500,-500.0,0.0003863,120]
[336511558,1724886294572,-500.0,0.0003863,120]
[336511559,1724886294645,-500.0,0.0003863,120]
[336511560,1724886294712,-500.0,0.0003863,120]
[336511561,1724886294778,-948.95,0.0003863,120]
[336511562,1724886294847,-500.0,0.0003863,120]
[336511563,1724886294915,-527.56041121,0.0003863,120]
[336511564,1724886294986,-500.0,0.0003863,120]
[336511565,1724886295055,-204.09,0.0003863,120]
[336511566,1724886295118,-500.0,0.0003863,120]
[336511567,1724886295184,-632.09,0.0003863,120]
[336511568,1724886295252,-500.0,0.0003863,120]
[336511569,1724886295319,-500.0,0.0003863,120]
[336511570,1724886295387,-500.0,0.0003863,120]
[336511571,1724886295450,-500.0,0.0003863,120]
[336511572,1724886295515,-500.0,0.0003863,120]
[336511573,1724886295580,-500.0,0.0003863,120]
[336511574,1724886295643,-500.0,0.0003863,120]
[336511575,1724886295704,-500.0,0.0003863,120]
[336511576,1724886295765,-500.0,0.0003863,120]
[336511577,1724886295827,-300.0,0.0003863,120]
[336511578,1724886295893,-1145.31,0.0003863,120]
[336511579,1724886295969,-1592.69,0.0003863,120]
[336511580,1724886296044,-500.0,0.0003863,120]
[336511581,1724886296113,-500.0,0.0003863,120]
[336511582,1724886296185,-1470.18,0.0003863,120]
[336511583,1724886296256,-500.0,0.0003863,120]
[336511584,1724886296329,-500.0,0.0003863,120]
[336511585,1724886296402,-500.0,0.0003863,120]
[336511586,1724886296472,-772.86,0.0003863,120]
[336511587,1724886296545,-500.0,0.0003863,120]
[336511588,1724886296616,-500.0,0.0003863,120]
[336511589,1724886296682,-535.61,0.0003863,120]
[336511590,1724886296751,-524.66,0.0003863,120]
[336511591,1724886296823,-500.0,0.0003863,120]
[336511592,1724886296890,-500.0,0.0003863,120]
[336511593,1724886296959,-500.65077869,0.0003863,120]
[336511594,1724886297027,-404.47,0.0003863,120]
[336511595,1724886297103,-500.0,0.0003863,120]
[336511596,1724886297176,-2098.61,0.0003863,120]
[336511597,1724886297243,-500.0,0.0003863,120]
[336511598,1724886297309,-509.22,0.0003863,120]
[336511599,1724886297379,-500.0,0.0003863,120]
[336511600,1724886297449,-500.0,0.0003863,120]
[336511601,1724886297514,-500.0,0.0003863,120]
[336511602,1724886297576,-500.0,0.0003863,120]
[336511603,1724886297637,-531.97,0.0003863,120]
[336511604,1724886297698,-500.0,0.0003863,120]
[336511605,1724886297756,-500.0,0.0003863,120]
[336511606,1724886297811,-500.0,0.0003863,120]
[336511607,1724886297870,-500.0,0.0003863,120]
[336511608,1724886297938,-500.0,0.0003863,120]
[336511609,1724886298015,-1877.64,0.0003863,120]
[336511610,1724886298090,-931.98,0.0003863,120]
[336511611,1724886298166,-500.0,0.0003863,120]
[336511612,1724886298444,-500.0,0.0003863,120]
[336511613,1724886298510,-1789.35,0.0003863,120]
[336511614,1724886298571,-500.0,0.0003863,120]
[336511615,1724886298626,-631.54,0.0003863,120]
[336511616,1724886298683,-500.0,0.0003863,120]
[336511617,1724886298742,-2347.84,0.0003863,120]
[336511618,1724886298801,-500.36901558,0.0003863,120]
[336511619,1724886298862,-529.52,0.0003863,120]
[336511620,1724886298924,-500.0,0.0003863,120]
[336511621,1724886298993,-501.28874673,0.0003863,120]
[336511622,1724886299056,-500.0,0.0003863,120]
[336511623,1724886299120,-500.0,0.0003863,120]
[336511624,1724886299185,-982.26,0.0003863,120]
[336511625,1724886299253,-500.0,0.0003863,120]
[336511626,1724886299326,-564.22,0.0003863,120]
[336511627,1724886299392,-500.0,0.0003863,120]
[336511628,1724886299457,-409.03,0.0003863,120]
[336511629,1724886299519,-500.0,0.0003863,120]
[336511630,1724886299583,-500.0,0.0003863,120]
[336511631,1724886299645,-801.34,0.0003863,120]
[336511632,1724886299706,-500.0,0.0003863,120]
[336511633,1724886299767,-2049.02,0.00038904,120]
[336511634,1724886299829,-500.0,0.00038904,120]
[336511635,1724886299891,-500.0,0.00038904,120]
[336511636,1724886299956,-680.33,0.00038904,120]
[336511637,1724886300019,-500.0,0.00038904,120]
[336511638,1724886300082,-500.0,0.00038904,120]
[336511639,1724886300147,-500.0,0.00038904,120]
[336511640,1724886300229,-1056.79,0.00038904,120]
[336511641,1724886300299,-500.0,0.00038904,120]
[336511642,1724886300370,-891.13,0.00038904,120]
[336511643,1724886300444,-348.04,0.00038904,120]
[336511644,1724886300512,-500.0,0.00038904,120]
[336511645,1724886300579,-500.0,0.00038904,120]
[336511646,1724886300640,-500.0,0.00038904,120]
[336511647,1724886300701,-637.04,0.00038904,120]
[336511648,1724886300757,-500.0,0.00038904,120]
[336511649,1724886300818,-717.5,0.00038904,120]
[336511650,1724886300878,-500.0,0.00038904,120]
[336511651,1724886300935,-500.0,0.00038904,120]
[336511652,1724886300991,-500.0,0.00038904,120]
[336511653,1724886301050,-500.0,0.00038904,120]
[336511654,1724886301109,-500.0,0.00038904,120]
[336511655,1724886301167,-1181.13,0.00038904,120]
[336511656,1724886301223,-1579.19,0.00038904,120]
[336511657,1724886301282,-500.0,0.00038904,120]
[336511658,1724886301349,-920.35,0.00038904,120]
[336511659,1724886301414,-500.0,0.00038904,120]
[336511660,1724886301478,-1840.27,0.00038904,120]
[336511661,1724886301538,-500.0,0.00038904,120]
[336511662,1724886301603,-342.44,0.00038904,120]
[336511663,1724886301669,-500.0,0.00038904,120]
[336511664,1724886301737,-654.82,0.00038904,120]
[336511665,1724886301806,-912.37,0.00038904,120]
[336511666,1724886301865,-500.0,0.00038904,120]
[336511667,1724886301926,-1104.37,0.00038904,120]
[336511668,1724886301990,-500.0,0.00038904,120]
[336511669,1724886302055,-500.0,0.00038904,120]
[336511670,1724886302117,-500.0,0.00038904,120]
[336511671,1724886302183,-631.76,0.00038904,120]
[336511672,1724886302255,-611.75,0.00038904,120]
[336511673,1724886302323,-500.0,0.00038904,120]
[336511674,1724886302392,-500.0,0.00038904,120]
[336511675,1724886302454,-500.0,0.00038904,120]
[336511676,1724886302515,-500.0,0.00038904,120]
[336511677,1724886302573,-500.0,0.00038904,120]
[336511678,1724886302640,-500.0,0.00038904,120]
[336511679,1724886302709,-500.0,0.00038904,120]
[336511680,1724886302778,-500.0,0.00038904,120]
[336511681,1724886302837,-500.0,0.00038904,120]
[336511682,1724886302895,-1569.87,0.00038904,120]
[336511683,1724886302951,-1273.26,0.00038904,120]
[336511684,1724886303009,-500.0,0.00038904,120]
[336511685,1724886303120,-654.11,0.00038904,120]
[336511686,1724886303202,-500.0,0.00038904,120]
[336511687,1724886303287,-2638.27,0.00038904,120]
[336511688,1724886303368,-500.0,0.00038904,120]
[336511689,1724886303443,-540.26129351,0.00038904,120]
[336511690,1724886303519,-2108.19,0.00038904,120]
[336511691,1724886303595,-500.0,0.00038904,120]
[336511692,1724886303679,-500.0,0.00038904,120]
[336511693,1724886303760,-500.0,0.00038904,120]
[336511694,1724886303839,-500.0,0.00038904,120]
[336511695,1724886303919,-2142.25,0.00038904,120]
[336511696,1724886304000,-500.0,0.00038904,120]
[336511697,1724886304083,-500.0,0.00038904,120]
[336511698,1724886304173,-2170.08,0.00038904,120]
[336511699,1724886304256,-500.0,0.00038904,120]
[336511700,1724886304339,-500.0,0.00038904,120]
[336511701,1724886304420,-500.0,0.00038904,120]
[336511702,1724886304502,-500.0,0.00038904,120]
[336511703,1724886304582,-500.0,0.00038904,120]
[336511704,1724886304665,-739.6,0.00038904,120]
[336511705,1724886304742,-500.0,0.00038904,120]
[336511706,1724886304819,-500.0,0.00038904,120]
[336511707,1724886304896,-500.0,0.00038904,120]
[336511708,1724886304976,-500.0,0.00038904,120]
[336511709,1724886305053,-1209.44,0.00038904,120]
[336511710,1724886305140,-500.0,0.00038904,120]
[336511711,1724886305218,-500.0,0.00038904,120]
[336511712,1724886305290,-500.0,0.00038904,120]
[336511713,1724886305379,-2783.34,0.00038904,120]
[336511714,1724886305456,-500.0,0.00038904,120]
[336511715,1724886305749,-500.0,0.00038904,120]
[336511716,1724886305835,-1174.49,0.00038904,120]
[336511717,1724886305915,-500.0,0.00038904,120]
[336511718,1724886305995,-500.0,0.00038904,120]
[336511719,1724886306079,-1360.62,0.00038904,120]
[336511720,1724886306164,-577.26,0.00038904,120]
[336511721,1724886306243,-614.02,0.00038904,120]
[336511722,1724886306321,-500.0,0.00038904,120]
[336511723,1724886306402,-500.0,0.00038904,120]
[336511724,1724886306483,-500.0,0.00038904,120]
[336511725,1724886306562,-789.5,0.00038904,120]
[336511726,1724886306646,-656.15,0.00038904,120]
[336511727,1724886306722,-500.0,0.00038904,120]
[336511728,1724886306799,-599.62,0.00038904,120]
[336511729,1724886306873,-500.0,0.00038904,120]
[336511730,1724886306953,-500.0,0.00038904,120]
[336511731,1724886307029,-500.0,0.00038904,120]
[336511732,1724886307109,-500.0,0.00038904,120]
[336511733,1724886307184,-500.0,0.00038904,120]
[336511734,1724886307258,-199.20186536,0.00038904,120]
[336511735,1724886307341,-500.0,0.00038904,120]
[336511736,1724886307422,-500.0,0.00038904,120]
[336511737,1724886307501,-2026.94,0.00038904,120]
[336511738,1724886307579,-640.33,0.00038904,120]
[336511739,1724886307654,-500.0,0.00038904,120]
[336511740,1724886307728,-500.0,0.00038904,120]
[336511741,1724886307812,-1007.8,0.00038904,120]
[336511742,1724886307889,-3251.65,0.00038904,120]
[336511743,1724886307973,-979.48,0.00038904,120]
[336511744,1724886308072,-988.01,0.00038904,120]
[336511745,1724886308158,-703.62,0.00038904,120]
[336511746,1724886308238,-500.0,0.00038904,120]
[336511747,1724886308340,-500.0,0.00038904,120]
[336511748,1724886308426,-500.0,0.00038904,120]
[336511749,1724886308502,-551.69,0.00038904,120]
[336511750,1724886308579,-500.0,0.00038904,120]
[336511751,1724886308654,-500.0,0.00038904,120]
[336511752,1724886308729,-701.62,0.00038904,120]
[336511753,1724886308806,-500.0,0.00038904,120]
[336511754,1724886308879,-1022.1,0.00038904,120]
[336511755,1724886308956,-500.0,0.00038904,120]